bitfinex-derivatives/quotes_ETHF0:USTF0_20260312
["timestamp","ask_amount","ask_price","bid_price","bid_amount"]
[1773280442222,0.92040688,2046.1,2045.2,0.00673232]
[1773280442924,0.92040688,2046.1,2045.3,0.00193708]
[1773280443926,0.92040688,2046.1,2045.3,0.00192888]
[1773280463241,0.92040688,2046.1,2045.4,0.03491749]
[1773280464341,0.92040688,2046.1,2045.3,6.397]
[1773280464642,0.92040688,2046.1,2045.3,6.43191096]
[1773280464838,0.90605387,2045.9,2045.3,6.43191096]
[1773280465734,0.90605387,2045.9,2045.2,0.00349887]
[1773280465942,0.90605416,2045.7,2045.2,0.00349887]
[1773280467241,0.90642786,2045.5,2045.2,0.00349887]
[1773280471344,0.83165421,2045.9,2045.2,0.02376612]
[1773280471644,0.83165421,2045.7,2045.2,0.02376612]
[1773280471838,0.83165421,2045.5,2045.2,0.02376612]
[1773280473647,0.83165421,2045.9,2045.2,0.02376612]
[1773280473846,0.83165421,2045.7,2045.2,0.02376612]
[1773280474640,0.83165421,2045.7,2045.2,0.00349887]
[1773280474846,0.83165421,2045.7,2045.2,0.84077715]
[1773280475141,0.83165421,2045.7,2045.2,0.00349887]
[1773280475947,0.83165421,2045.7,2045.2,0.84077715]
[1773280479449,0.83165421,2046.0,2045.2,0.84077715]
[1773280479652,0.83165421,2045.8,2045.2,0.84077715]
[1773280479848,7.69659297,2045.7,2045.2,0.84077715]
[1773280480147,0.83165421,2045.8,2045.2,0.84077715]
[1773280480351,7.69619807,2045.7,2045.2,0.84077715]
[1773280480546,0.83165421,2045.8,2045.2,0.84077715]
[1773280480746,7.69619807,2045.7,2045.2,0.84077715]
[1773280480947,0.83165421,2045.8,2045.2,0.84077715]
[1773280481144,7.69619807,2045.7,2045.2,0.84077715]
[1773280481444,0.83165421,2045.9,2045.2,0.84077715]
[1773280481649,8.59871513,2045.8,2045.2,0.84077715]
[1773280481849,7.69619807,2045.7,2045.2,0.84077715]
[1773280482149,0.90251706,2045.8,2045.2,0.84077715]
[1773280482349,7.69619807,2045.7,2045.2,0.84077715]
[1773280482553,0.90251706,2045.8,2045.2,0.84077715]
[1773280482753,0.90251706,2045.7,2045.2,0.84077715]
[1773280487156,6.11818593,2046.2,2045.2,0.84077715]
[1773280487460,0.90251706,2046.0,2045.2,0.84077715]
[1773280487760,6.11818593,2046.3,2045.2,0.84077715]
[1773280487761,8.59871513,2045.9,2045.2,0.84077715]
[1773280488060,0.90251706,2045.9,2045.2,0.84077715]
[1773280490760,6.11818593,2046.3,2045.3,0.93122212]
[1773280491059,0.87837596,2046.1,2045.3,0.93122212]
[1773280492660,0.87837596,2045.9,2045.3,0.93122212]
[1773280494363,12.51618593,2046.4,2045.3,0.93122212]
[1773280494364,0.59976503,2046.1,2045.3,0.93122212]
[1773280494563,0.60176838,2045.9,2045.3,0.93122212]
[1773280495254,0.1,2046.5,2045.3,0.93122212]
[1773280495255,0.60023075,2046.4,2045.3,0.93122212]
[1773280495456,0.60023075,2046.2,2045.3,0.93122212]
[1773280495663,8.29695741,2046.1,2045.3,0.93122212]
[1773280495863,0.60220694,2046.1,2045.3,0.93122212]
[1773280496263,0.60238075,2046.2,2045.3,0.93122212]
[1773280499973,0.71212186,2046.5,2045.7,0.93122212]
[1773280500164,0.61212186,2046.3,2045.3,0.93122212]
[1773280500363,0.1,2046.5,2045.3,0.93122212]
[1773280500364,0.61212186,2046.1,2045.3,0.93122212]
[1773280504777,0.61568187,2046.4,2045.4,0.93122212]
[1773280505675,0.61568187,2046.4,2045.8,0.93122212]
[1773280505878,0.1,2046.5,2046.0,0.93122212]
[1773280506080,0.71759343,2046.5,2046.0,0.93122212]
[1773280506672,0.71759343,2046.5,2045.7,8.65560892]
[1773280506876,0.71759343,2046.5,2045.8,0.93122212]
[1773280508780,0.71759343,2046.5,2045.7,6.398]
[1773280508978,0.71759343,2046.5,2045.8,0.93122212]
[1773280509376,0.71759343,2046.5,2045.7,0.93122212]
[1773280513287,7.64318284,2046.4,2045.7,0.93122212]
[1773280513487,0.58424881,2046.3,2045.7,0.93122212]
[1773280515289,0.58424881,2046.3,2045.4,0.93122212]
[1773280518090,0.58719328,2046.1,2045.4,0.93122212]
[1773280519689,0.5882543,2046.4,2045.6,0.93122212]
[1773280519890,8.23409567,2046.3,2045.6,0.93122212]
[1773280520188,0.58828248,2046.3,2045.6,0.93122212]
[1773280521188,0.68964642,2046.5,2045.7,0.93042523]
[1773280521387,0.68964642,2046.5,2045.9,0.93042523]
[1773280521589,7.64756668,2046.4,2046.0,0.93042523]
[1773280521788,0.68964642,2046.5,2046.0,0.93042523]
[1773280524094,0.69125208,2046.5,2046.0,0.93042523]
[1773280526091,0.69125208,2046.5,2045.9,1.32642374]
[1773280526695,0.59259202,2046.3,2045.9,0.93042523]
[1773280527288,0.59224639,2046.4,2045.9,0.93042523]
[1773280534399,0.59224639,2046.4,2045.8,2.25684897]
[1773280534700,0.59312699,2046.3,2045.8,0.93042523]
[1773280535405,0.59312699,2046.3,2045.6,0.93042523]
[1773280536401,0.59329277,2046.1,2045.6,0.93042523]
[1773280537297,0.59329277,2046.1,2045.5,0.93042523]
[1773280541005,0.51901473,2046.2,2045.7,0.93042523]
[1773280541506,0.52038011,2046.4,2045.9,0.88264394]
[1773280541707,8.15150104,2046.3,2045.9,0.88264394]
[1773280541909,0.52038011,2046.3,2045.9,0.88264394]
[1773280545403,0.49368905,2046.1,2045.7,0.88264394]
[1773280545608,0.49368905,2046.1,2045.5,0.88264394]
[1773280550908,1.82011279,2046.1,2045.5,0.88264394]
[1773280551120,0.49295218,2046.0,2045.5,0.88264394]
[1773280551415,0.49295218,2045.8,2045.4,0.95150875]
[1773280553115,0.49410141,2046.0,2045.4,0.95150875]
[1773280558015,0.50045528,2045.8,2045.4,0.95150875]
[1773280558417,0.50045528,2045.8,2045.3,0.95150875]
[1773280558616,1.32642374,2045.7,2045.2,0.00349887]
[1773280558917,0.92783723,2045.6,2045.2,0.95500762]
[1773280559320,0.92783723,2045.8,2045.2,0.95500762]
[1773280560812,1.32642374,2045.7,2045.2,0.95500762]
[1773280561018,0.92783723,2045.9,2045.3,0.95150875]
[1773280561220,8.45100652,2045.8,2045.3,0.95150875]
[1773280561415,0.92783723,2045.8,2045.3,0.95150875]
[1773280564823,0.92783723,2046.0,2045.5,0.95150875]
[1773280565023,8.45155685,2045.9,2045.5,0.95150875]
[1773280565324,0.92783723,2045.9,2045.5,0.95150875]
[1773280568931,0.1,2046.1,2045.5,0.95150875]
[1773280569226,0.92783723,2046.4,2045.9,0.95150875]
[1773280570027,5.01350008,2046.5,2045.9,0.95150875]
[1773280570224,4.08566285,2046.5,2045.9,0.95150875]
[1773280570429,0.92783723,2046.4,2045.9,0.95150875]
[1773280571123,0.92783723,2046.4,2045.8,0.95150875]
[1773280573032,0.92783723,2046.2,2045.7,0.95150875]
[1773280580129,0.960729,2046.4,2045.9,0.96444407]
[1773280581231,7.49218675,2046.3,2045.9,0.96444407]
[1773280581431,0.960729,2046.4,2045.9,0.96444407]
[1773280581633,7.49252119,2046.3,2045.9,0.96444407]
[1773280581834,0.960729,2046.4,2045.9,0.96444407]
[1773280582030,8.4539253,2046.3,2045.9,0.96444407]
[1773280582328,0.960729,2046.3,2045.9,0.96444407]
[1773280585435,0.960729,2046.5,2045.9,0.96444407]
[1773280585635,8.45221642,2046.4,2045.9,0.96444407]
[1773280585834,0.960729,2046.3,2045.9,0.96444407]
[1773280586336,0.960729,2046.3,2045.6,0.96444407]
[1773280596042,0.960729,2046.1,2045.5,7.36444407]
[1773280596843,0.960729,2046.1,2045.6,0.96444407]
[1773280598148,7.50660604,2046.0,2045.6,0.96444407]
[1773280598444,0.960729,2045.9,2045.6,0.96444407]
[1773280600448,4.08834004,2046.3,2045.6,0.96444407]
[1773280600650,0.960729,2046.1,2045.6,0.96444407]
[1773280600852,0.960729,2045.9,2045.6,0.96444407]
[1773280607958,0.92249579,2046.2,2045.6,0.96444407]
[1773280608160,0.92249579,2046.0,2045.6,0.96444407]
[1773280610564,0.92249579,2046.0,2045.5,6.4]
[1773280610565,0.92249579,2046.0,2045.5,7.32045129]
[1773280610961,8.45321982,2045.9,2045.3,0.92045129]
[1773280611263,0.94930241,2045.8,2045.3,0.92045129]
[1773280615069,0.94930241,2045.8,2045.2,6.40349887]
[1773280615370,0.94930241,2045.7,2045.0,0.92045129]
[1773280615870,0.94930241,2045.5,2045.0,0.92045129]
[1773280616267,0.94930241,2045.5,2045.0,0.92542241]
[1773280616972,0.94930241,2045.3,2044.7,0.92045129]
[1773280618064,0.94930241,2045.3,2044.7,0.92419143]
[1773280618269,0.21824996,2045.3,2044.7,0.92419143]
[1773280620870,0.21824996,2045.3,2044.7,0.00374014]
[1773280621069,0.21824996,2045.3,2044.7,0.92419143]
[1773280622074,7.4757736,2045.5,2044.9,0.92045129]
[1773280622275,0.91179313,2045.6,2044.9,0.92045129]
[1773280629478,0.93467204,2045.9,2044.9,0.92045129]
[1773280629683,8.40299765,2045.8,2044.9,0.92045129]
[1773280629885,0.93467204,2045.8,2044.9,0.92045129]
[1773280630480,0.93469511,2046.0,2045.3,0.92045129]
[1773280630681,0.93525849,2045.8,2045.3,0.92045129]
[1773280633083,0.94930241,2046.1,2045.3,0.92045129]
[1773280633276,0.94930241,2045.9,2045.3,0.92045129]
[1773280639683,0.94930241,2045.7,2045.3,0.92045129]
[1773280639982,0.94930241,2045.7,2045.1,7.36100726]
[1773280640287,0.94930241,2045.7,2045.2,0.96000726]
[1773280641181,0.94930241,2045.7,2045.1,7.36100726]
[1773280641381,0.89891802,2045.5,2045.1,6.401]
[1773280641586,0.89891802,2045.5,2045.1,7.36100726]
[1773280643090,0.89891802,2045.5,2045.2,0.96000726]
[1773280644291,0.89891802,2045.8,2045.2,0.96000726]
[1773280644490,0.89891802,2045.6,2045.2,0.96000726]
[1773280648390,0.89891802,2045.6,2044.9,0.96000726]
[1773280648595,0.89891802,2045.4,2044.9,0.96000726]
[1773280649496,1.32760941,2045.5,2044.7,0.00374014]
[1773280649497,0.89891802,2045.2,2044.7,0.9637474]
[1773280649796,0.90484154,2045.2,2044.5,0.96000726]
[1773280650694,1.32760941,2045.1,2044.5,0.96000726]
[1773280650998,0.89891802,2045.0,2044.5,0.96459644]
[1773280651492,0.00592352,2045.2,2044.8,0.96000726]
[1773280651493,0.90484154,2045.2,2044.8,0.96000726]
[1773280660495,0.00592352,2045.2,2044.9,1.32760941]
[1773280660701,0.00592352,2045.2,2045.0,0.96000726]
[1773280660902,0.89891802,2045.4,2045.0,0.96000726]
[1773280661103,0.89891802,2045.6,2045.2,0.96000726]
[1773280661405,8.41106453,2045.5,2045.2,0.96000726]
[1773280661702,0.92961204,2045.6,2045.2,0.96000726]
[1773280661903,7.48166628,2045.5,2045.2,0.96000726]
[1773280662103,0.93553009,2045.6,2045.2,0.96000726]
[1773280662405,7.4816724,2045.5,2045.2,0.96000726]
[1773280662606,0.93553009,2045.6,2045.2,0.96000726]
[1773280662806,7.48234296,2045.5,2045.2,0.96000726]
[1773280663000,0.93553009,2045.6,2045.2,0.96000726]
[1773280667307,0.93553009,2045.6,2045.1,1.32760941]
[1773280667508,0.93553009,2045.6,2045.1,2.23972556]
[1773280668113,0.93553009,2045.6,2045.2,0.91211615]
[1773280668408,7.48534617,2045.5,2045.2,0.91211615]
[1773280668609,0.93553009,2045.6,2045.2,0.91211615]
[1773280668809,7.48520967,2045.5,2045.2,0.91211615]
[1773280669003,0.93553009,2045.6,2045.2,0.91211615]
[1773280669201,7.48568925,2045.5,2045.2,0.91211615]
[1773280669405,0.93553009,2045.6,2045.2,0.91211615]
[1773280669605,7.48656574,2045.5,2045.2,0.91211615]
[1773280669811,0.93553009,2045.6,2045.2,0.91211615]
[1773280670007,7.48657636,2045.5,2045.2,0.91211615]
[1773280670206,0.93553009,2045.6,2045.2,0.91211615]
[1773280670501,0.93553009,2045.6,2045.1,1.32760941]
[1773280670502,0.96912843,2045.4,2045.1,2.31582536]
[1773280670905,8.45637381,2045.5,2045.1,2.31582536]
[1773280671107,0.96912843,2045.5,2045.2,0.98821595]
[1773280671513,0.97504648,2045.6,2045.2,0.98821595]
[1773280671911,0.00591805,2045.6,2045.2,0.98821595]
[1773280672108,0.00591805,2045.6,2045.4,0.98821595]
[1773280672411,0.96912843,2045.7,2045.4,0.98821595]
[1773280672611,7.48798752,2045.6,2045.4,0.98821595]
[1773280672812,0.96912843,2045.7,2045.4,0.98821595]
[1773280673012,7.48797826,2045.6,2045.4,0.98821595]
[1773280673313,0.00560447,2045.6,2045.4,0.98821595]
[1773280673512,0.9747329,2045.6,2045.2,0.98821595]
[1773280675215,0.96912843,2045.7,2045.2,0.98821595]
[1773280675415,7.48852827,2045.6,2045.2,0.98821595]
[1773280675616,0.96912843,2045.5,2045.2,0.98821595]
[1773280676016,0.96912843,2045.7,2045.2,0.98821595]
[1773280676216,8.4576797,2045.6,2045.2,0.98821595]
[1773280676420,0.96912843,2045.6,2045.2,0.98821595]
[1773280677922,0.97282989,2045.7,2045.4,0.98821595]
[1773280679715,0.00370146,2045.7,2045.4,0.98821595]
[1773280679913,11.45846847,2046.0,2045.6,0.98821595]
[1773280680113,8.46006247,2045.9,2045.6,0.98821595]
[1773280680314,7.49093404,2045.8,2045.6,0.98821595]
[1773280680523,0.96912843,2045.9,2045.6,0.98821595]
[1773280680723,7.49096904,2045.8,2045.6,0.98821595]
[1773280681024,0.97523911,2045.9,2045.6,0.98821595]
[1773280681220,7.4893135,2045.8,2045.6,0.98821595]
[1773280681522,0.97523911,2045.9,2045.6,0.98821595]
[1773280681825,7.49001404,2045.8,2045.6,0.98821595]
[1773280682123,0.97523911,2045.9,2045.6,0.98821595]
[1773280682323,8.4584892,2045.8,2045.4,0.98821595]
[1773280682515,0.96912843,2045.8,2045.4,0.98821595]
[1773280684126,0.97523911,2045.9,2045.5,2.31582536]
[1773280684320,8.45602041,2045.8,2045.5,2.31582536]
[1773280684520,8.45602041,2045.8,2045.5,0.98821595]
[1773280684521,0.96912843,2045.8,2045.5,0.98821595]
[1773280685415,0.96912843,2045.8,2045.1,0.98821595]
[1773280685620,2.29673784,2045.5,2044.8,0.98821595]
[1773280685923,0.96912843,2045.5,2044.8,0.98821595]
[1773280686824,0.96912843,2045.4,2044.8,0.98821595]
[1773280689123,0.96912843,2045.4,2045.0,0.98821595]
[1773280690926,0.96912843,2045.4,2044.9,0.98821595]
[1773280698034,5.41594945,2045.7,2044.9,0.98821595]
[1773280698234,8.46815362,2045.6,2045.2,0.98821595]
[1773280698533,0.96912843,2045.7,2045.3,0.98821595]
[1773280698730,8.46827816,2045.6,2045.3,0.98821595]
[1773280698930,0.96912843,2045.6,2045.3,0.98821595]
[1773280703734,0.90370124,2045.7,2045.3,0.98821595]
[1773280703933,8.40324199,2045.6,2045.3,0.98821595]
[1773280704136,0.90370124,2045.6,2045.3,0.98821595]
[1773280705041,0.90370124,2045.6,2045.0,0.91558698]
[1773280708543,0.90370124,2045.5,2044.5,0.00458918]
[1773280708749,0.90370124,2045.3,2044.6,0.91558698]
[1773280709042,0.90370124,2045.1,2044.5,0.92017616]
[1773280710441,0.90370124,2045.4,2044.9,0.91558698]
[1773280711148,0.90370124,2045.1,2044.5,0.00458918]
[1773280711345,0.90370124,2045.1,2044.5,0.92017616]
[1773280713445,0.90370124,2045.3,2044.5,0.92017616]
[1773280713645,7.34473559,2045.2,2044.5,0.92017616]
[1773280713845,0.90370124,2045.3,2044.5,0.92017616]
[1773280714043,7.34470156,2045.2,2044.5,0.92017616]
[1773280714244,0.90370124,2045.3,2044.5,0.92017616]
[1773280715048,8.24764222,2045.2,2044.5,0.92017616]
[1773280715246,0.90370124,2045.2,2044.5,0.92017616]
[1773280716549,0.90370124,2045.4,2044.5,0.92017616]
[1773280716750,8.24541481,2045.3,2044.5,0.92017616]
[1773280716948,0.90370124,2045.2,2044.5,0.92017616]
[1773280725356,0.90370124,2045.2,2044.6,0.96110203]
[1773280735458,0.9393166,2045.4,2044.6,0.96110203]
[1773280735660,7.34833175,2045.3,2044.6,0.96110203]
[1773280735953,0.9393166,2045.4,2044.6,0.96110203]
[1773280736159,4.08834004,2045.7,2045.0,1.3277617]
[1773280736354,0.9393166,2045.5,2045.1,0.99131282]
[1773280744670,0.9393166,2045.8,2045.1,0.99131282]
[1773280749777,0.94542728,2045.9,2045.1,0.99131282]
[1773280750076,7.27380876,2045.8,2045.1,0.99131282]
[1773280750276,0.94542728,2045.9,2045.1,0.99131282]
[1773280750576,8.21277646,2045.8,2045.1,0.99131282]
[1773280750772,0.9393166,2045.8,2045.1,0.99131282]
[1773280761192,1.00099036,2045.7,2044.8,0.96807978]
[1773280767686,0.00611068,2045.9,2045.0,0.96807978]
[1773280767687,1.00710104,2045.9,2045.0,0.96807978]
[1773280767893,7.28585548,2045.8,2045.0,0.96807978]
[1773280768093,7.28585548,2045.7,2045.0,0.96807978]
[1773280768285,1.00710104,2045.9,2045.0,0.96807978]
[1773280768491,7.28566452,2045.8,2045.0,0.96807978]
[1773280768792,7.28566395,2045.7,2045.0,0.96807978]
[1773280768994,1.00710104,2045.9,2045.0,0.96807978]
[1773280769190,7.28520603,2045.8,2045.0,0.96807978]
[1773280769496,1.00710104,2045.9,2045.0,0.96807978]
[1773280769794,7.2846994,2045.8,2045.3,0.96807978]
[1773280770092,1.00710104,2045.9,2045.3,0.96807978]
[1773280770291,8.28440645,2045.8,2045.3,0.96807978]
[1773280770593,1.00099036,2045.8,2045.3,0.96807978]
[1773280774191,0.00611068,2045.9,2045.3,0.96807978]
[1773280774496,7.28120011,2045.8,2045.3,0.96807978]
[1773280774795,0.00611068,2045.9,2045.3,0.96807978]
[1773280776495,1.00710104,2045.9,2045.3,0.96807978]
[1773280779193,0.00611068,2045.9,2045.3,0.96807978]
[1773280779701,0.00611068,2045.9,2045.5,0.96807978]
[1773280782402,0.93829111,2045.9,2045.5,0.96807978]
[1773280782995,0.93829111,2045.9,2045.3,0.95867857]
[1773280789501,0.00611068,2045.9,2045.5,0.95867857]
[1773280790201,0.99286779,2045.9,2045.5,0.95867857]
[1773280790400,0.99286779,2045.9,2045.3,0.99824577]
[1773280796110,0.99286779,2045.9,2045.3,2.32557922]
[1773280796310,0.99286779,2045.9,2045.4,0.99824577]
[1773280800019,0.98675711,2046.2,2045.8,0.99824577]
[1773280800318,0.98675711,2045.8,2045.4,0.99824577]
[1773280800717,0.98675711,2045.6,2045.0,0.99824577]
[1773280800913,0.98675711,2045.4,2045.0,0.99824577]
[1773280801113,0.99117633,2045.4,2045.1,1.24269577]
[1773280801322,0.99117633,2045.4,2044.9,0.99824577]
[1773280801516,0.98675711,2045.2,2044.7,1.24269577]
[1773280801712,0.98675711,2045.2,2044.7,2.32557922]
[1773280801918,0.00441922,2045.4,2045.0,0.99824577]
[1773280802219,0.98675711,2045.7,2045.0,0.99824577]
[1773280802421,0.98675711,2045.7,2045.2,0.99824577]
[1773280802821,0.98675711,2046.0,2045.4,0.99824577]
[1773280803124,0.98675711,2045.8,2045.2,0.99824577]
[1773280803321,0.98675711,2045.6,2045.1,0.99824577]
[1773280803519,0.98675711,2045.6,2045.2,0.24445]
[1773280803823,0.98675711,2045.2,2044.8,0.99824577]
[1773280804124,0.98675711,2045.3,2044.8,0.99824577]
[1773280804422,0.98675711,2045.4,2044.8,0.99824577]
[1773280807220,0.98675711,2045.2,2044.8,0.99824577]
[1773280808326,0.98675711,2045.2,2044.7,7.40024577]
[1773280808622,0.98675711,2045.0,2044.5,1.00283495]
[1773280808822,0.98675711,2045.0,2044.5,0.00458918]
[1773280809021,0.98675711,2045.0,2044.5,1.00283495]
[1773280810426,1.32733345,2045.5,2044.5,0.00458918]
[1773280810427,0.98675711,2044.8,2044.5,0.00458918]
[1773280810621,0.98675711,2044.8,2044.4,7.40124577]
[1773280811519,0.98675711,2044.8,2044.4,7.40667019]
[1773280812020,0.98675711,2044.8,2044.1,1.32733345]
[1773280812021,0.98675711,2044.6,2044.2,0.99824577]
[1773280813026,0.98675711,2044.6,2044.2,1.00253534]
[1773280813823,0.98675711,2044.8,2044.2,1.00253534]
[1773280822033,0.96939366,2045.1,2044.4,0.97407158]
[1773280822733,0.96939366,2044.9,2044.4,0.97407158]
[1773280826136,0.96939366,2044.9,2044.2,0.00428957]
[1773280826335,0.96939366,2044.7,2044.2,0.97836115]
[1773280830337,0.96939366,2044.7,2044.3,0.97407158]
[1773280835635,0.96939366,2044.7,2044.3,0.97274285]
[1773280836739,0.96939366,2044.7,2044.2,0.00428957]
[1773280836945,0.96939366,2044.6,2044.0,0.97407158]
[1773280838042,0.96939366,2044.6,2044.0,0.97877356]
[1773280841044,0.7784204,2044.6,2044.0,0.00470198]
[1773280841446,0.96939366,2044.4,2043.7,0.97083672]
[1773280842449,0.97383247,2044.4,2043.7,0.97511439]
[1773280843948,0.93167373,2044.7,2043.9,0.97083672]
[1773280844751,7.97648685,2044.6,2043.9,0.97083672]
[1773280844951,0.93526642,2044.6,2043.9,0.97083672]
[1773280847353,0.93526642,2044.6,2043.8,0.97083672]
[1773280850055,2.26392744,2044.6,2043.7,0.00427767]
[1773280850357,0.92249709,2044.4,2043.7,0.00427767]
[1773280851157,0.92249709,2044.4,2043.7,0.95657869]
[1773280851552,0.92249709,2044.4,2043.7,0.00427767]
[1773280851751,0.92249709,2044.4,2043.7,0.95657869]
[1773280865072,0.00359269,2044.6,2044.1,0.95230102]
[1773280865568,0.92608978,2044.6,2044.1,0.95230102]
[1773280868372,0.92249709,2044.4,2043.8,0.95230102]
[1773280868772,0.92249709,2044.4,2043.7,0.95657869]
[1773280870068,5.41451809,2044.6,2043.7,0.95657869]
[1773280870069,0.92249709,2044.2,2043.7,0.95657869]
[1773280881383,0.94696402,2044.4,2043.7,0.95657869]
[1773280881582,8.00553192,2044.3,2043.7,0.95657869]
[1773280881784,0.94696402,2044.3,2043.7,0.95657869]
[1773280884485,0.94696402,2044.1,2043.7,0.95657869]
[1773280891091,0.94696402,2044.4,2043.7,0.95657869]
[1773280891390,8.01787581,2044.3,2043.7,0.95657869]
[1773280891585,7.07091179,2044.2,2043.7,0.95657869]
[1773280891791,0.94696402,2044.3,2043.7,0.95657869]
[1773280891985,0.94696402,2044.4,2043.7,0.95657869]
[1773280892182,7.07073765,2044.3,2043.8,1.32866102]
[1773280892388,0.95055671,2044.6,2043.9,0.96208046]
[1773280892581,7.07149586,2044.5,2043.9,0.96208046]
[1773280892783,7.07149586,2044.4,2043.9,0.96208046]
[1773280892986,0.95055671,2044.6,2043.9,0.96208046]
[1773280893187,7.07158757,2044.5,2043.9,0.96208046]
[1773280893388,0.95055671,2044.6,2043.9,0.96208046]
[1773280893587,0.94696402,2044.4,2043.9,0.96208046]
[1773280895691,0.00359269,2044.6,2043.9,0.96208046]
[1773280895887,5.0292284,2045.0,2044.3,0.96208046]
[1773280896194,0.94696402,2045.1,2044.5,0.96208046]
[1773280896389,0.94696402,2045.3,2044.9,0.96208046]
[1773280896985,0.0059312,2045.3,2044.9,0.96208046]
[1773280897490,0.94696402,2045.5,2044.9,0.96208046]
[1773280897892,0.94696402,2045.5,2045.1,0.96208046]
[1773280898084,0.94696402,2045.7,2045.1,0.96208046]
[1773280898489,0.95089901,2045.7,2045.1,0.96208046]
[1773280902097,0.00393499,2045.7,2045.3,0.97623852]
[1773280902294,2.12894977,2046.0,2045.3,0.98059218]
[1773280902595,0.79950126,2046.0,2045.3,0.98059218]
[1773280902800,2.12991523,2046.2,2045.5,0.97623852]
[1773280902997,1.32944851,2046.2,2045.5,0.97623852]
[1773280903189,0.80569701,2046.2,2045.7,0.97623852]
[1773280903393,0.80048849,2046.5,2045.9,0.97623852]
[1773280903596,0.80048849,2046.4,2045.9,0.97623852]
[1773280904298,0.806302,2046.4,2045.9,0.97623852]
[1773280904700,0.80237625,2046.2,2045.9,0.97623852]
[1773280905298,0.80647199,2046.3,2045.9,0.97623852]
[1773280906693,0.00581351,2046.4,2045.9,0.97623852]
[1773280906895,0.80831329,2046.4,2045.7,0.97623852]
[1773280907797,0.81340799,2046.4,2045.7,0.97623852]
[1773280909498,1.32944851,2045.8,2045.4,0.97623852]
[1773280909697,0.90023647,2045.7,2045.3,0.98059218]
[1773280909896,0.90112681,2045.9,2045.3,0.98059218]
[1773280913803,0.93512443,2046.3,2045.3,0.98059218]
[1773280915400,0.93558158,2046.0,2045.3,0.00435366]
[1773280916001,0.93558158,2046.0,2045.3,0.95398902]
[1773280916705,0.93725501,2046.3,2045.3,0.95398902]
[1773280919302,0.94020579,2045.7,2044.5,0.94963536]
[1773280920206,0.94020579,2045.7,2044.5,0.95386349]
[1773280920409,0.94102358,2046.2,2044.7,0.94963536]
[1773280921814,0.95665432,2046.4,2045.0,0.94963536]
[1773280922009,0.95160058,2046.2,2045.0,0.94963536]
[1773280933623,1.01393665,2045.9,2045.2,0.94963536]
[1773280937723,1.01515166,2045.5,2045.1,0.94963536]
[1773280937929,1.01515166,2045.7,2045.1,0.94963536]
[1773280939327,1.32747952,2046.0,2045.1,0.94963536]
[1773280939528,1.01474102,2045.9,2045.3,0.94963536]
[1773280941331,1.01474102,2045.9,2045.0,1.32747952]
[1773280941332,0.96325846,2045.7,2045.1,0.96608802]
[1773280941533,0.0050947,2046.4,2044.5,1.33170765]
[1773280941534,0.96325846,2045.5,2044.9,0.96608802]
[1773280942935,2.29073798,2045.2,2044.6,0.96608802]
[1773280943132,0.96325846,2045.1,2044.6,0.96608802]
[1773280943535,0.96325846,2044.9,2044.5,0.97031615]
[1773280943735,0.9695121,2044.9,2044.5,0.97031615]
[1773280946237,0.9695121,2044.9,2044.3,1.32747952]
[1773280946238,0.9695121,2044.9,2044.4,0.96608802]
[1773280947142,0.9695121,2044.9,2044.4,0.97170924]
[1773280947641,1.32747952,2044.8,2044.4,0.97170924]
[1773280947945,0.96325846,2044.7,2044.3,0.96608802]
[1773280948135,2.29073798,2044.6,2044.3,0.24912453]
[1773280948443,2.29073798,2044.6,2043.9,6.404]
[1773280948444,0.96325846,2044.5,2044.0,0.96608802]
[1773280948743,0.96325846,2044.5,2044.0,0.96957847]
[1773280949141,0.9695121,2044.9,2044.4,0.96608802]
[1773280952739,0.96325846,2044.8,2044.2,0.96608802]
[1773280952944,1.33373316,2044.9,2043.8,0.96608802]
[1773280952945,0.96325846,2044.2,2043.8,0.96608802]
[1773280953335,0.96325846,2044.2,2043.6,0.96608802]
[1773280953938,0.96325846,2044.2,2043.6,0.97230778]
[1773280955143,0.96325846,2044.2,2043.6,0.00621976]
[1773280955340,0.96325846,2043.8,2043.1,0.96608802]
[1773280956444,0.96325846,2043.8,2043.1,0.97160764]
[1773280958948,0.96325846,2043.8,2042.7,40.8]
[1773280958949,0.96325846,2043.6,2042.5,0.98808802]
[1773280959947,0.96325846,2043.6,2042.5,0.99310772]
[1773280960742,0.96325846,2043.4,2042.5,0.0270197]
[1773280960947,0.96889905,2043.4,2042.5,0.0270197]
[1773280961751,0.96889905,2043.4,2042.5,1.01354601]
[1773280962447,0.96889905,2043.4,2042.5,0.0270197]
[1773280962648,0.96889905,2043.4,2042.5,1.01354601]
[1773280965751,0.00564059,2043.4,2042.5,1.01354601]
[1773280966052,1.04784689,2043.8,2042.5,1.01354601]
[1773280967046,1.05343968,2043.8,2042.5,1.01354601]
[1773280968155,0.00559279,2043.8,2042.5,1.01354601]
[1773280968355,1.05343968,2043.8,2042.5,1.01354601]
[1773280968558,1.05343968,2043.8,2042.6,0.98652631]
[1773280969257,1.05343968,2043.8,2042.8,0.98652631]
[1773280976260,0.00559279,2043.8,2043.0,1.04292693]
[1773280977154,2.79e-06,2043.8,2043.1,0.24471]
[1773280977360,2.79e-06,2043.8,2043.2,1.04292693]
[1773280977662,1.03601999,2044.1,2043.4,1.04292693]
[1773280978157,1.03601999,2044.8,2043.4,1.04292693]
[1773280978354,4.02983319,2044.9,2043.4,1.04292693]
[1773280978355,1.03601999,2044.6,2043.4,1.04292693]
[1773280978551,1.03948931,2044.6,2043.6,1.04292693]
[1773280979554,1.03948931,2044.6,2043.7,7.44792693]
[1773280979956,1.03948931,2044.6,2043.8,1.04292693]
[1773280980460,1.03948931,2044.6,2043.7,6.405]
[1773280980661,1.03948931,2044.6,2043.8,1.04292693]
[1773280982862,0.00346932,2044.6,2043.8,1.04292693]
[1773280983960,1.03601999,2045.3,2043.8,1.04292693]
[1773280984160,1.03601999,2045.1,2043.8,1.04292693]
[1773280984362,1.03601999,2045.1,2043.9,1.04292693]
[1773280984565,1.03601999,2045.1,2043.9,1.28753693]
[1773280984763,1.04128147,2045.1,2043.9,1.28753693]
[1773280985858,0.00526148,2045.1,2044.2,1.04292693]
[1773280986063,0.00526148,2045.1,2044.2,1.04905817]
[1773280986361,1.03601999,2045.5,2044.2,1.04905817]
[1773280986561,1.03601999,2045.5,2044.4,1.04292693]
[1773280986755,1.03601999,2045.7,2044.4,1.04292693]
[1773280987156,1.03601999,2045.7,2044.6,1.04292693]
[1773280987355,0.00396486,2045.7,2044.6,1.04292693]
[1773280987555,1.03998485,2045.7,2044.6,1.04292693]
[1773280991168,0.00396486,2045.7,2044.8,1.04292693]
[1773280991963,0.00396486,2045.7,2045.0,1.04292693]
[1773280993171,1.03601999,2046.7,2045.0,1.04292693]
[1773280993671,1.03601999,2046.7,2045.2,1.04292693]
[1773280994173,1.04155688,2046.7,2045.4,1.04292693]
[1773280994365,1.04155688,2046.7,2045.6,1.04292693]
[1773281000477,0.00553689,2046.7,2045.6,1.04292693]
[1773281001072,0.00553689,2046.7,2045.8,0.98031393]
[1773281001279,1.06757707,2047.0,2046.0,0.98031393]
[1773281001473,1.06757707,2047.0,2046.2,0.98031393]
[1773281002176,1.07157416,2047.0,2046.2,0.98031393]